bitfinex-derivatives/quotes_SOLF0:USTF0_20241024
["timestamp","ask_amount","ask_price","bid_price","bid_amount"]
[1729739153700,61.8,174.99,174.89,7.04186156]
[1729739153890,7.04186156,174.94,174.89,7.04186156]
[1729739154694,7.04186156,174.94,174.91,2.8612]
[1729739155389,9.90306156,174.92,174.88,2.8616]
[1729739155590,7.04186156,174.9,174.88,2.8616]
[1729739155778,7.04186156,174.9,174.89,2.8616]
[1729739156187,7.04186156,174.9,174.85,7.04186156]
[1729739156597,11.56186156,174.91,174.86,7.04186156]
[1729739156791,11.56186156,174.91,174.85,7.04186156]
[1729739156998,2.862,174.87,174.83,2.5341]
[1729739157190,7.04186156,174.86,174.83,2.5341]
[1729739158199,7.04186156,174.86,174.83,5.3965]
[1729739159688,4.52,174.87,174.83,2.5341]
[1729739159888,11.56186156,174.87,174.84,2.8623]
[1729739160784,4.52,174.87,174.85,2.8621]
[1729739161591,4.52,174.87,174.84,2.8623]
[1729739162789,7.382,174.87,174.83,5.3966]
[1729739162997,4.52,174.87,174.83,1.2525]
[1729739163401,7.04186156,174.86,174.81,8.30256156]
[1729739163694,7.04186156,174.85,174.83,2.8625]
[1729739163890,7.04186156,174.85,174.8,1.43164157]
[1729739164090,7.04186156,174.85,174.79,7.04186156]
[1729739164287,4.52,174.87,174.8,8.47351265]
[1729739164288,11.56186156,174.87,174.8,8.47351265]
[1729739164603,11.56186156,174.87,174.8,7.04186156]
[1729739164990,14.42396156,174.87,174.83,2.8626]
[1729739165187,14.42396156,174.87,174.8,7.04186156]
[1729739165188,11.56186156,174.87,174.8,7.04186156]
[1729739166200,2.8621,174.86,174.82,2.8626]
[1729739166499,2.8621,174.86,174.78,1.2777]
[1729739166694,2.8621,174.86,174.8,7.04186156]
[1729739166894,11.56186156,174.87,174.84,2.8624]
[1729739167489,14.42386156,174.87,174.84,2.8624]
[1729739167700,4.52,174.87,174.8,7.04186156]
[1729739167901,34.56704613,175.1,174.78,1.2777]
[1729739167902,17.21,175.09,174.85,7.04186156]
[1729739168200,13.3547847,175.1,174.88,7.04186156]
[1729739168201,7.04186156,174.93,174.88,7.04186156]
[1729739168392,7.04186156,174.93,174.9,2.8613]
[1729739168710,4.52,174.92,174.88,7.04186156]
[1729739170689,4.52,174.92,174.86,7.04186156]
[1729739170690,7.04186156,174.91,174.86,7.04186156]
[1729739171302,7.04186156,174.91,174.89,2.8615]
[1729739171907,7.04186156,174.91,174.87,2.8619]
[1729739172094,7.04186156,174.9,174.87,2.8619]
[1729739172298,7.04186156,174.9,174.84,10.86422951]
[1729739172499,7.04186156,174.9,174.84,9.43286156]
[1729739173399,7.3811,174.92,174.84,9.43286156]
[1729739173400,7.04186156,174.88,174.84,1.1945]
[1729739173599,7.04186156,174.88,174.83,1.43137314]
[1729739173600,7.04186156,174.87,174.83,1.43137314]
[1729739173799,7.04186156,174.87,174.82,8.23316156]
[1729739174000,7.04186156,174.87,174.82,9.66469659]
[1729739174405,7.04186156,174.87,174.82,8.23316156]
[1729739174911,7.04186156,174.85,174.83,2.8625]
[1729739175112,4.52,174.84,174.8,1.43157981]
[1729739175401,11.56186156,174.84,174.78,1.43164164]
[1729739175592,11.56186156,174.84,174.77,1.2541]
[1729739175593,11.56186156,174.84,174.77,8.29596156]
[1729739175795,11.56186156,174.84,174.78,1.43178458]
[1729739175996,11.56186156,174.84,174.82,2.8627]
[1729739176199,4.52,174.84,174.82,2.8627]
[1729739176396,4.52,174.84,174.79,1.4317599]
[1729739176600,4.52,174.84,174.8,2.8629]
[1729739176800,4.52,174.84,174.78,7.04186156]
[1729739178304,4.52,174.84,174.81,2.8628]
[1729739188715,4.52,174.84,174.79,1.43182188]
[1729739188916,4.52,174.84,174.81,2.8628]
[1729739190816,7.3826,174.84,174.8,7.04186156]
[1729739191506,7.3826,174.84,174.8,2.8629]
[1729739192713,7.3826,174.84,174.78,7.04186156]
[1729739193314,7.3826,174.84,174.79,1.43185998]
[1729739193523,7.3826,174.84,174.78,7.04186156]
[1729739193818,7.3826,174.84,174.79,1.43185998]
[1729739194007,7.3826,174.84,174.78,7.04186156]
[1729739194208,7.3826,174.84,174.79,1.43185979]
[1729739194409,7.3826,174.84,174.81,2.8629]
[1729739195114,9.90446156,174.83,174.79,2.8631]
[1729739196109,7.04186156,174.83,174.7,2.5135]
[1729739196316,9.90496156,174.8,174.75,1.43189842]
[1729739196510,4.52,174.79,174.76,1.43189842]
[1729739196710,4.52,174.79,174.77,1.43189842]
[1729739197009,4.52,174.79,174.74,147.70213505]
[1729739197205,4.52,174.79,174.75,1.43201482]
[1729739197415,4.52,174.79,174.77,2.8635]
[1729739199112,4.52,174.79,174.74,147.70213505]
[1729739199319,4.52,174.79,174.76,2.8637]
[1729739200416,4.52,174.79,174.78,2.8634]
[1729739203621,4.52,174.79,174.77,2.8635]
[1729739204225,4.52,174.79,174.77,2.8636]
[1729739206228,4.52,174.79,174.7,2.5135]
[1729739206424,4.52,174.79,174.73,7.04186156]
[1729739206621,4.52,174.79,174.74,1.43204544]
[1729739206822,4.52,174.79,174.75,1.43204544]
[1729739207019,4.52,174.79,174.76,4.29574544]
[1729739207220,4.52,174.79,174.75,7.04186156]
[1729739207417,4.52,174.79,174.76,1.4320554]
[1729739207718,4.52,174.79,174.77,2.8634]
[1729739209625,4.52,174.79,174.66,4.52]
[1729739209626,7.04186156,174.78,174.64,2.85001373]
[1729739209819,7.04186156,174.74,174.65,3.90951662]
[1729739210132,1.1943,174.78,174.65,3.90951662]
[1729739210133,7.04186156,174.72,174.68,2.865]
[1729739210318,4.52,174.71,174.69,1.43211662]
[1729739210523,4.52,174.71,174.7,1.43211662]
[1729739211227,4.52,174.71,174.7,1.43215078]
[1729739211820,4.52,174.71,174.64,1.2566]
[1729739212021,4.52,174.71,174.7,7.04186156]
[1729739212220,4.52,174.71,174.7,9.90656156]
[1729739214017,4.52,174.71,174.7,2.8647]
[1729739214218,11.56186156,174.71,174.66,7.04186156]
[1729739214525,7.04186156,174.68,174.63,7.04186156]
[1729739214722,11.56186156,174.67,174.55,3.7427]
[1729739215018,7.04186156,174.63,174.55,3.7427]
[1729739215218,11.56186156,174.62,174.56,7.04186156]
[1729739215422,11.56186156,174.62,174.47,35.2612089]
[1729739215423,11.56186156,174.62,174.58,2.8667]
[1729739216526,11.56186156,174.62,174.55,7.04186156]
[1729739216728,4.52,174.62,174.57,7.04186156]
[1729739217026,1.1623,174.66,174.63,2.8658]
[1729739217228,4.52,174.65,174.6,7.04186156]
[1729739218330,4.52,174.65,174.64,2.8657]
[1729739218839,1.1623,174.66,174.58,11.01347587]
[1729739219029,1.1623,174.66,174.65,2.8655]
[1729739219221,5.6823,174.66,174.65,2.8655]
[1729739219520,5.6823,174.66,174.58,11.01347587]
[1729739219720,5.6823,174.66,174.64,2.8657]
[1729739222127,5.6823,174.66,174.63,2.8658]
[1729739222327,5.6823,174.66,174.58,11.01347587]
[1729739223232,5.6823,174.66,174.63,2.8658]
[1729739224134,11.01347587,174.65,174.51,11.01347587]
[1729739224335,11.01347587,174.62,174.49,14.79237587]
[1729739224530,4.5,174.65,174.58,11.01347587]
[1729739224729,4.5,174.65,174.64,2.8657]
[1729739227035,4.5,174.65,174.53,4.52]
[1729739227036,4.52,174.65,174.6,11.01347587]
[1729739227825,4.52,174.65,174.64,2.8657]
[1729739232335,4.52,174.65,174.58,2.8666]
[1729739232536,4.52,174.65,174.55,1.2418]
[1729739232537,11.01347587,174.64,174.55,1.2418]
[1729739233239,11.01347587,174.64,174.62,2.866]
[1729739234041,11.01347587,174.64,174.55,1.2418]
[1729739234341,11.01347587,174.64,174.62,2.866]
[1729739236144,11.01347587,174.64,174.55,1.2418]
[1729739236339,4.52,174.65,174.64,2.8657]
[1729739237641,11.01347587,174.69,174.68,2.865]
[1729739237841,15.53347587,174.69,174.68,2.865]
[1729739238835,15.53347587,174.69,174.6,1.2862]
[1729739239147,4.52,174.68,174.67,2.8652]
[1729739239748,4.52,174.68,174.65,2.8654]
[1729739241048,4.52,174.68,174.63,2.8658]
[1729739241049,11.01347587,174.66,174.63,2.8658]
[1729739241443,11.01347587,174.66,174.55,1.2418]
[1729739241840,11.01347587,174.64,174.55,1.2418]
[1729739242043,11.01347587,174.62,174.55,1.2418]
[1729739242347,1.1648,174.7,174.48,11.01347587]
[1729739242348,11.01347587,174.6,174.48,11.01347587]
[1729739242644,11.01347587,174.6,174.49,1.05349754]
[1729739242645,4.52,174.59,174.49,1.05349754]
[1729739242848,4.52,174.59,174.5,1.05351109]
[1729739243046,4.52,174.59,174.48,14.65737587]
[1729739243252,4.52,174.59,174.49,1.05359191]
[1729739243845,4.52,174.59,174.48,14.65737587]
[1729739244051,4.52,174.59,174.57,2.8667]
[1729739244750,15.53347587,174.59,174.58,2.8667]
[1729739254562,15.53347587,174.59,174.48,3.6439]
[1729739255458,4.52,174.59,174.49,11.01347587]
[1729739256047,4.52,174.59,174.58,2.8667]
[1729739256253,11.56681613,174.59,174.58,2.8667]
[1729739256550,7.04681613,174.59,174.58,2.8667]
[1729739256755,11.54681613,174.59,174.58,2.8667]
[1729739257759,7.04681613,174.6,174.53,7.04681613]
[1729739257960,7.04681613,174.6,174.59,2.8665]
[1729739258286,7.04681613,174.6,174.54,1.2506]
[1729739258287,4.5,174.6,174.58,7.04681613]
[1729739258455,4.5,174.6,174.59,2.8665]
[1729739260777,7.04681613,174.64,174.63,2.8659]
[1729739260978,11.54681613,174.64,174.63,2.8659]
[1729739262263,4.5,174.64,174.63,2.8659]
[1729739262663,12.27606612,174.69,174.68,2.865]
[1729739263061,16.77606612,174.69,174.68,2.865]
[1729739263268,16.77606612,174.69,174.58,11.00406612]
[1729739263568,16.77606612,174.69,174.67,2.8652]
[1729739263962,16.77606612,174.69,174.55,2.45]
[1729739264167,11.00406612,174.62,174.55,2.45]
[1729739264361,4.5,174.61,174.55,2.45]
[1729739265368,4.5,174.61,174.6,2.8664]
[1729739270868,4.5,174.61,174.59,2.8664]
[1729739273578,4.5,174.61,174.55,2.45]
[1729739273778,4.5,174.61,174.6,2.8664]
[1729739278873,2.8667,174.58,174.55,2.8672]
[1729739279083,2.8667,174.58,174.43,14.74964245]
[1729739279084,11.00406612,174.56,174.47,1.2743]
[1729739279269,11.00406612,174.53,174.47,1.2743]
[1729739279584,64.3295,174.6,174.51,11.00406612]
[1729739279585,4.5,174.59,174.51,11.00406612]
[1729739280081,4.5,174.59,174.58,2.8667]
[1729739281073,61.88,174.6,174.51,11.00406612]
[1729739281074,13.86936612,174.67,174.62,2.8659]
[1729739281279,4.5,174.66,174.62,2.8659]
[1729739281889,4.5,174.66,174.57,3.7053]
[1729739282380,7.04266123,174.64,174.58,7.04266123]
[1729739283385,7.04266123,174.64,174.62,2.8659]
[1729739284673,7.04266123,174.64,174.61,2.8661]
[1729739285779,4.5,174.63,174.62,2.866]
[1729739285984,4.5,174.63,174.57,3.7053]
[1729739285985,4.5,174.63,174.6,7.04266123]
[1729739286483,11.54266123,174.63,174.62,2.866]
[1729739288981,11.54266123,174.63,174.61,2.8662]
[1729739289184,7.04266123,174.61,174.57,3.7053]
[1729739289686,7.04266123,174.61,174.57,1.2743]
[1729739291388,7.04266123,174.61,174.59,2.8665]
[1729739294691,7.04266123,174.61,174.6,2.8664]
[1729739302094,4.5,174.63,174.6,2.8664]
[1729739302288,7.04266123,174.61,174.6,2.8664]
[1729739302597,61.88,174.7,174.57,1.2743]
[1729739302784,61.88,174.7,174.58,7.04266123]
[1729739302785,4.5,174.69,174.58,7.04266123]
[1729739303093,4.5,174.69,174.57,1.2743]
[1729739303094,7.04266123,174.63,174.57,1.2743]
[1729739303283,7.04266123,174.63,174.61,2.8662]
[1729739303284,4.5,174.62,174.61,2.8662]
[1729739307493,61.88,174.7,174.62,2.866]
[1729739307494,4.5,174.63,174.62,2.866]
[1729739307795,4.5,174.63,174.61,7.04266123]
[1729739308901,4.5,174.63,174.62,2.866]
[1729739322006,4.5,174.63,174.61,2.8661]
[1729739322204,7.04266123,174.62,174.61,2.8661]
[1729739325397,7.04266123,174.62,174.56,8.30346123]
[1729739325596,4.5,174.63,174.59,2.8664]
[1729739325597,7.04266123,174.6,174.59,2.8664]
[1729739330204,4.5,174.63,174.56,7.04266123]
[1729739330409,7.04266123,174.62,174.61,2.8661]
[1729739332502,4.5,174.63,174.56,7.04266123]
[1729739332710,4.5,174.63,174.62,2.866]
[1729739333400,7.04266123,174.66,174.64,2.8657]
[1729739333601,4.5,174.65,174.64,2.8657]
[1729739336215,61.88,174.7,174.68,2.8649]
[1729739336513,4.5,174.69,174.68,2.8649]
[1729739340118,11.54266123,174.69,174.6,1.1813]
[1729739340319,7.04266123,174.64,174.57,7.04266123]
[1729739340519,4.5,174.63,174.57,7.04266123]
[1729739340715,4.5,174.63,174.58,2.8666]
[1729739340916,7.04266123,174.62,174.57,7.04266123]
[1729739341614,7.04266123,174.61,174.56,1.2137]
[1729739342928,7.04266123,174.61,174.6,2.8664]
[1729739345729,7.04266123,174.61,174.54,1.2672]
[1729739345730,7.04266123,174.61,174.58,2.8666]
[1729739345920,7.04266123,174.59,174.58,2.8666]
[1729739346124,11.54266123,174.59,174.58,2.8666]
[1729739348535,11.54266123,174.59,174.57,2.8668]
[1729739348732,7.04266123,174.58,174.57,2.8668]
[1729739354029,11.54266123,174.59,174.54,7.04266123]
[1729739354335,7.04266123,174.62,174.6,2.8662]
[1729739354536,4.5,174.61,174.6,2.8662]
[1729739354831,11.54266123,174.61,174.57,2.8668]
[1729739355041,7.04266123,174.58,174.57,2.8668]
[1729739369054,7.04266123,174.59,174.57,2.8668]
[1729739375362,64.7657,174.65,174.61,2.8662]
[1729739375562,7.04266123,174.62,174.61,2.8662]
[1729739376467,7.04266123,174.62,174.59,2.8665]
[1729739376652,7.04266123,174.6,174.59,2.8665]
[1729739376851,11.52266123,174.6,174.59,2.8665]
[1729739377157,4.48,174.6,174.59,2.8665]
[1729739377357,4.48,174.6,174.57,7.04266123]
[1729739378364,4.48,174.6,174.59,2.8665]
[1729739380266,61.9,174.65,174.59,7.04266123]
[1729739380461,61.9,174.65,174.53,2.80074766]
[1729739380462,61.9,174.65,174.64,2.8657]
[1729739380869,66.38,174.65,174.64,9.90836123]
[1729739381167,4.48,174.65,174.64,9.90836123]
[1729739383066,4.48,174.66,174.65,2.8655]
[1729739383267,4.48,174.66,174.64,7.04266123]
[1729739383767,7.04266123,174.71,174.67,2.8651]
[1729739383968,4.48,174.7,174.67,2.8651]
[1729739384969,4.48,174.7,174.68,2.865]
[1729739386057,7.04266123,174.71,174.68,2.865]
[1729739386365,4.48,174.7,174.68,2.865]
[1729739386755,2.8636,174.77,174.73,2.8642]
[1729739386961,3.6695,174.78,174.69,7.04266123]
[1729739387160,7.04266123,174.76,174.7,7.04266123]
[1729739387368,7.04266123,174.74,174.66,2.4951]
[1729739387565,4.48,174.73,174.68,7.04266123]
[1729739387762,11.52266123,174.73,174.68,7.04266123]
[1729739388272,11.52266123,174.73,174.67,7.04266123]
[1729739389280,11.52266123,174.73,174.7,2.8646]
[1729739397477,11.52266123,174.73,174.66,9.53776123]
[1729739398177,11.52266123,174.73,174.7,2.8647]
[1729739403587,11.52266123,174.73,174.66,8.31716123]
[1729739403791,11.52266123,174.73,174.66,7.04266123]
[1729739404087,11.52266123,174.73,174.7,2.8647]
[1729739405882,11.52266123,174.73,174.61,1.1717]
[1729739405883,7.04266123,174.71,174.61,1.1717]
[1729739406086,7.04266123,174.69,174.64,7.04266123]
[1729739406294,7.04266123,174.69,174.61,2.3308]
[1729739406295,4.48,174.68,174.61,2.3308]
[1729739406484,4.48,174.68,174.66,2.8652]
[1729739406681,4.48,174.68,174.61,2.3308]
[1729739406682,4.48,174.68,174.64,7.04266123]
[1729739407688,4.48,174.68,174.61,2.3308]
[1729739407879,4.48,174.68,174.63,7.04266123]
[1729739408297,4.48,174.68,174.67,2.8652]
[1729739415699,11.52266123,174.68,174.67,2.8652]
[1729739415902,11.52266123,174.68,174.58,7.04266123]
[1729739416096,7.04266123,174.64,174.58,7.04266123]
[1729739416297,4.48,174.63,174.58,7.04266123]
[1729739416491,4.48,174.63,174.62,2.8659]
[1729739417295,4.48,174.63,174.62,9.90856123]
[1729739417597,61.86,174.7,174.68,2.8649]
[1729739417598,68.90266123,174.7,174.68,2.8649]
[1729739417793,4.48,174.69,174.68,2.8649]
[1729739421298,11.52266123,174.69,174.68,2.8649]
[1729739422901,4.48,174.69,174.68,2.8649]
[1729739423104,61.86,174.7,174.69,2.8649]
[1729739423300,66.34,174.7,174.69,2.8649]
[1729739424207,7.04266123,174.77,174.75,2.8638]
[1729739424399,4.48,174.76,174.71,7.04266123]
[1729739424595,11.52266123,174.76,174.7,7.04266123]
[1729739425606,11.52266123,174.76,174.71,2.8644]
[1729739425906,11.52266123,174.76,174.7,7.04266123]
[1729739426301,11.52266123,174.76,174.74,2.864]
[1729739426513,11.52266123,174.76,174.7,7.04266123]
[1729739426702,11.52266123,174.76,174.74,2.864]
[1729739427216,11.52266123,174.76,174.73,2.8642]
[1729739427515,7.04266123,174.75,174.73,2.8642]
[1729739429409,4.48,174.74,174.73,2.8642]
[1729739431307,68.90266123,174.79,174.75,2.8639]
[1729739431512,4.48,174.78,174.75,2.8639]
[1729739432015,7.04266123,174.77,174.75,2.8639]
[1729739432715,7.04266123,174.77,174.64,3.6649]
[1729739433016,7.04266123,174.77,174.71,7.04266123]
[1729739433615,4.48,174.78,174.73,7.04266123]
[1729739433912,4.48,174.77,174.74,7.04266123]
[1729739434106,4.48,174.76,174.75,2.8639]
[1729739435213,68.90266123,174.79,174.74,7.04266123]
[1729739435410,68.90266123,174.79,174.76,2.8637]
[1729739435619,4.48,174.78,174.76,2.8637]
[1729739438015,9.90636123,174.77,174.73,2.8642]
[1729739438208,7.04266123,174.74,174.73,2.8642]
[1729739438412,11.52266123,174.74,174.73,2.8642]
[1729739439018,17.2,174.96,174.73,7.04266123]
[1729739439223,7.04266123,174.81,174.73,7.04266123]
[1729739439411,4.48,174.8,174.73,7.04266123]
[1729739440318,4.48,174.8,174.78,2.8634]
[1729739440923,7.04266123,174.83,174.8,2.8629]
[1729739441220,4.48,174.82,174.8,2.8629]
[1729739441410,4.48,174.82,174.77,7.04266123]
[1729739442215,4.48,174.82,174.81,2.8629]
[1729739444326,7.04266123,174.83,174.81,2.8629]
[1729739444526,4.48,174.82,174.81,2.8629]
[1729739451624,17.2,175.02,174.78,7.04266123]
[1729739451831,240.42,175.14,174.84,7.04266123]
[1729739451832,11.52266123,174.89,174.84,7.04266123]
[1729739452028,4.48,174.88,174.84,7.04266123]
[1729739452724,4.48,174.88,174.87,2.8619]
[1729739453024,4.48,174.88,174.84,7.04266123]
[1729739453225,11.52266123,174.88,174.86,2.8621]
[1729739454420,2.4454,174.96,174.82,7.04266123]
[1729739454618,7.04266123,174.89,174.87,2.8619]
[1729739454830,4.48,174.88,174.87,2.8619]
[1729739457325,4.48,174.88,174.84,7.04266123]
[1729739457326,7.04266123,174.89,174.88,2.8618]
[1729739457536,4.48,174.89,174.88,2.8618]
[1729739458431,11.52266123,174.89,174.88,2.8618]
[1729739462141,4.48,174.89,174.88,2.8618]
[1729739463239,122.91062972,175.05,174.93,2.8609]
[1729739463542,122.91062972,175.05,174.87,7.04266123]
[1729739463543,7.04266123,174.93,174.87,7.04266123]
[1729739463743,11.50266123,174.93,174.87,7.04266123]
[1729739464943,11.50266123,174.93,174.92,2.8611]
[1729739465844,4.46,174.93,174.92,2.8611]
[1729739469241,11.50266123,174.93,174.92,2.8611]
[1729739470844,11.50266123,174.93,174.9,2.8613]
[1729739471044,7.04266123,174.91,174.9,2.8613]
[1729739472049,4.46,174.93,174.91,2.8612]
[1729739472243,7.04266123,174.92,174.91,2.8612]
[1729739473854,7.04266123,174.92,174.86,8.27116123]
[1729739474049,7.04266123,174.92,174.9,2.8613]
[1729739475949,7.04266123,174.92,174.89,2.8615]
[1729739476151,7.04266123,174.9,174.75,149.36602823]
[1729739476354,7.04266123,174.88,174.77,9.13967102]
[1729739476546,7.04266123,174.88,174.82,7.04266123]
[1729739477349,7.04266123,174.88,174.87,2.8619]
[1729739477753,4.46,174.89,174.87,2.8619]
[1729739478449,4.46,174.89,174.84,7.04266123]
[1729739478952,4.46,174.89,174.86,7.04266123]
[1729739480258,4.46,174.89,174.88,2.8618]
[1729739483944,4.46,174.89,174.77,20.8277]
[1729739484146,11.50266123,174.89,174.83,7.04266123]
[1729739484855,11.50266123,174.89,174.87,2.8618]
[1729739485957,7.04266123,174.88,174.71,17.2]
[1729739486257,7.04266123,174.84,174.82,2.8627]
[1729739486565,4.46,174.83,174.82,2.8627]
[1729739491165,4.46,174.83,174.77,7.04266123]
[1729739491349,4.46,174.83,174.76,7.04266123]
[1729739491350,7.04266123,174.82,174.76,7.04266123]
[1729739491651,7.04266123,174.82,174.77,7.04266123]
[1729739491854,7.04266123,174.82,174.75,1.2375]
[1729739492057,7.04266123,174.82,174.77,7.04266123]
[1729739492662,7.04266123,174.82,174.78,2.8633]
[1729739492861,7.04266123,174.82,174.66,17.2]
[1729739493054,7.04266123,174.78,174.69,1.1885]
[1729739493258,4.46,174.77,174.75,2.8637]
[1729739494067,11.50266123,174.77,174.7,7.04266123]
[1729739494663,11.50266123,174.77,174.73,2.8641]
[1729739495258,11.50266123,174.77,174.74,2.864]
[1729739497860,11.50266123,174.77,174.73,7.04266123]
[1729739497861,4.46,174.77,174.73,7.04266123]
[1729739498066,4.46,174.77,174.75,7.04266123]
[1729739499258,4.46,174.77,174.76,2.8637]
[1729739500764,7.04266123,174.8,174.76,2.8637]
[1729739500966,4.46,174.79,174.76,2.8637]
[1729739504973,4.46,174.79,174.77,2.8636]
[1729739509792,4.46,174.79,174.78,2.8634]
[1729739510180,7.04266123,174.81,174.78,2.8634]
[1729739510382,85.37756252,175.24,174.69,1.1885]
[1729739510383,2.8616,174.9,174.84,2.8623]
[1729739510583,7.04266123,174.87,174.84,2.8623]
[1729739510778,4.46,174.86,174.84,2.8623]
[1729739512487,4.46,174.86,174.85,2.8623]
[1729739512786,11.50266123,174.86,174.77,1.2767]
[1729739512984,7.04266123,174.8,174.74,7.04266123]
[1729739513184,7.04266123,174.78,174.77,2.8636]
[1729739513482,11.50266123,174.78,174.77,2.8636]
[1729739513688,4.46,174.78,174.77,2.8636]
[1729739516088,4.46,174.78,174.76,2.8637]
[1729739516887,7.04266123,174.77,174.68,1.259]
[1729739517083,7.04266123,174.77,174.72,7.04266123]
[1729739517488,7.04266123,174.77,174.73,2.8641]
[1729739518097,7.04266123,174.77,174.74,2.864]
[1729739519900,7.04266123,174.77,174.72,7.04266123]
[1729739520101,7.04266123,174.77,174.75,2.8639]
[1729739522402,7.04266123,174.77,174.75,2.8638]
[1729739523694,4.46,174.78,174.75,2.8638]
[1729739523898,11.50266123,174.78,174.75,2.8638]
[1729739524707,9.90646123,174.76,174.72,2.8644]
[1729739524900,7.04266123,174.74,174.72,2.8644]
[1729739525097,4.46,174.73,174.72,2.8644]
[1729739525304,4.46,174.73,174.67,2.4486]
[1729739525305,11.50266123,174.73,174.7,2.8646]
[1729739529398,11.50266123,174.73,174.67,8.27756123]
[1729739529597,4.46,174.73,174.72,9.90706123]
[1729739530801,2.4199,174.79,174.72,7.04266123]
[1729739530802,4.46,174.74,174.72,7.04266123]
[1729739531004,4.46,174.74,174.73,9.90686123]
[1729739538611,17.2,174.99,174.73,7.04266123]
[1729739538813,11.50266123,174.83,174.79,2.8631]
[1729739539212,11.50266123,174.83,174.77,7.04266123]
[1729739539514,7.04266123,174.82,174.77,7.04266123]
[1729739540016,7.04266123,174.8,174.76,7.04266123]
[1729739540217,11.50266123,174.79,174.74,7.04266123]
[1729739540513,4.46,174.78,174.76,2.8636]
[1729739546611,4.46,174.78,174.74,7.04266123]
[1729739547416,4.46,174.78,174.69,1.1685]
[1729739547417,4.46,174.78,174.77,2.8636]
[1729739547723,4.46,174.78,174.76,7.04266123]
[1729739548922,4.46,174.78,174.77,2.8636]
[1729739555421,4.46,174.78,174.69,1.1685]
[1729739555726,4.46,174.78,174.77,2.8636]
[1729739557023,4.46,174.78,174.69,1.1685]
[1729739557224,4.46,174.78,174.75,2.8638]
[1729739557225,11.50266123,174.78,174.75,2.8638]
[1729739558228,4.46,174.78,174.73,2.8641]
[1729739558422,4.46,174.78,174.72,7.04266123]
[1729739559120,4.46,174.78,174.75,2.8638]
[1729739576638,11.50266123,174.78,174.75,2.8638]
[1729739577837,2.4205,174.88,174.76,7.04266123]
[1729739578029,7.04266123,174.83,174.76,7.04266123]
[1729739578725,7.04266123,174.83,174.79,2.8631]
[1729739578925,9.90526123,174.83,174.79,2.8631]
[1729739579729,7.04266123,174.81,174.79,2.8631]
[1729739579932,4.46,174.8,174.79,2.8631]
[1729739580441,4.46,174.8,174.79,7.96032938]
[1729739582036,4.46,174.8,174.79,5.09722938]
[1729739582037,11.50266123,174.8,174.79,5.09722938]
[1729739582335,11.50266123,174.8,174.78,2.8633]
[1729739588642,11.50266123,174.8,174.79,2.8632]
[1729739590737,11.50266123,174.8,174.74,7.04266123]
[1729739593243,11.50266123,174.8,174.77,2.8634]
[1729739596346,11.50266123,174.8,174.75,7.04266123]
[1729739596645,11.50266123,174.8,174.78,2.8634]
[1729739599244,7.04266123,174.79,174.73,1.239]
[1729739599548,7.04266123,174.76,174.75,2.8637]
[1729739599750,11.48266123,174.76,174.75,2.8637]
[1729739602541,11.48266123,174.76,174.68,1.2372]
[1729739602744,7.04266123,174.74,174.69,7.04266123]
[1729739603738,7.04266123,174.74,174.7,2.8646]
[1729739603938,7.04266123,174.72,174.66,2.4468]
[1729739604146,7.04266123,174.72,174.67,7.04266123]
[1729739604147,4.44,174.71,174.67,7.04266123]
[1729739605453,4.44,174.71,174.7,2.8647]
[1729739606944,11.48266123,174.71,174.66,1.2233]
[1729739607155,11.48266123,174.71,174.65,152.56033096]
[1729739608044,11.48266123,174.71,174.69,2.8647]
[1729739609547,11.48266123,174.71,174.65,152.56033096]
[1729739610359,11.48266123,174.71,174.7,2.8647]
[1729739610844,1.2619,174.78,174.7,7.04266123]
[1729739611148,1.2619,174.78,174.65,145.51766973]
[1729739611149,7.04266123,174.78,174.73,7.04266123]
[1729739611349,4.44,174.77,174.73,7.04266123]